bitfinex-derivatives/quotes_BTCF0:USTF0_20250320
["timestamp","ask_amount","ask_price","bid_price","bid_amount"]
[1742481363322,0.3608,86231.0,86230.0,0.1740132]
[1742481363518,0.1160066,86235.0,86234.0,0.174008]
[1742481364417,0.1160066,86235.0,86234.0,0.0580031]
[1742481364724,0.1005,86236.0,86229.0,0.12448]
[1742481364725,0.1160129,86230.0,86229.0,0.12448]
[1742481365317,0.1160129,86230.0,86229.0,0.2404943]
[1742481366031,0.116017,86227.0,86226.0,0.00017398]
[1742481366326,0.116017,86227.0,86226.0,0.12469398]
[1742481366525,0.318017,86227.0,86226.0,0.22979398]
[1742481367130,0.318017,86227.0,86226.0,0.34581228]
[1742481367619,0.116017,86227.0,86226.0,0.32789398]
[1742481367927,0.320517,86227.0,86226.0,0.24071228]
[1742481368115,0.320517,86227.0,86226.0,0.34371228]
[1742481368520,0.320517,86227.0,86226.0,0.44921228]
[1742481369022,0.320517,86227.0,86226.0,0.20867398]
[1742481369221,0.320517,86227.0,86226.0,0.12469398]
[1742481369626,0.321717,86227.0,86226.0,0.00017398]
[1742481369818,0.321717,86227.0,86224.0,0.12452]
[1742481369819,0.2045,86227.0,86224.0,0.12452]
[1742481370019,0.1740297,86225.0,86224.0,0.12452]
[1742481370325,0.1160277,86219.0,86218.0,0.00868605]
[1742481370516,0.4768277,86219.0,86218.0,0.00868605]
[1742481370919,0.1160399,86210.0,86209.0,0.84224]
[1742481371129,0.1160466,86205.0,86204.0,0.20577684]
[1742481371324,0.4768466,86205.0,86204.0,0.20577684]
[1742481371530,0.058026,86201.0,86197.0,0.2731165]
[1742481371722,0.476856,86198.0,86197.0,0.2731165]
[1742481371923,0.475856,86198.0,86197.0,0.2731165]
[1742481372319,0.4716805,86198.0,86190.0,0.1072]
[1742481372522,0.1160668,86190.0,86181.0,0.12452]
[1742481372726,0.1160789,86181.0,86174.0,0.00852242]
[1742481372918,0.4768789,86181.0,86174.0,0.00852242]
[1742481373430,0.4768789,86181.0,86173.0,0.12452]
[1742481373624,0.4738789,86181.0,86173.0,0.12452]
[1742481373830,0.4718789,86181.0,86173.0,0.12452]
[1742481374233,0.1160883,86174.0,86173.0,0.12452]
[1742481374531,0.4678883,86174.0,86173.0,0.3432097]
[1742481374934,0.3608,86174.0,86173.0,0.4471097]
[1742481375134,0.4768883,86174.0,86173.0,0.22712]
[1742481375325,0.1160897,86173.0,86172.0,0.00017398]
[1742481375529,0.2157897,86173.0,86172.0,0.00017398]
[1742481376733,0.2107897,86173.0,86172.0,0.00017398]
[1742481377236,0.2057897,86173.0,86172.0,0.00017398]
[1742481377634,0.2067897,86173.0,86172.0,0.00517398]
[1742481377837,0.2067897,86173.0,86172.0,0.01017398]
[1742481378735,0.3067897,86173.0,86172.0,0.01017398]
[1742481378945,0.2067897,86173.0,86172.0,0.01017398]
[1742481379431,0.2070897,86173.0,86172.0,0.01017398]
[1742481379639,0.1080897,86173.0,86172.0,0.12126498]
[1742481379837,0.1070897,86173.0,86172.0,0.11726498]
[1742481380035,0.1070897,86173.0,86172.0,0.00117398]
[1742481380235,0.1070897,86173.0,86172.0,1.50117398]
[1742481380434,0.001,86173.0,86172.0,1.61726498]
[1742481380629,0.1180897,86173.0,86172.0,1.61626498]
[1742481380839,0.1180897,86173.0,86172.0,1.74082498]
[1742481381340,0.002,86173.0,86172.0,1.75213455]
[1742481381637,0.1160836,86180.0,86179.0,0.1741163]
[1742481381937,0.1160836,86180.0,86179.0,0.3567163]
[1742481382141,0.1160836,86180.0,86179.0,0.2406397]
[1742481382741,0.1170836,86180.0,86179.0,0.2406397]
[1742481383137,0.001,86180.0,86179.0,0.2406397]
[1742481383331,0.4083,86186.0,86182.0,0.0580375]
[1742481383531,0.1741135,86185.0,86184.0,0.1160735]
[1742481383738,0.0580373,86185.0,86184.0,0.1160735]
[1742481384538,4e-05,86188.0,86187.0,0.1160708]
[1742481384741,0.00017398,86189.0,86188.0,0.1160695]
[1742481385257,0.3608,86190.0,86189.0,0.1160681]
[1742481385434,0.0580153,86217.0,86199.0,0.1160547]
[1742481385435,0.1063,86207.0,86199.0,0.1160547]
[1742481385743,0.0580153,86217.0,86199.0,0.1160547]
[1742481385744,0.0580145,86218.0,86213.0,0.0580179]
[1742481385943,0.1740491,86217.0,86216.0,0.4768304]
[1742481386249,0.13809351,86219.0,86218.0,0.1160291]
[1742481386436,0.25412121,86219.0,86218.0,0.1160291]
[1742481387046,0.25412121,86219.0,86218.0,0.12709323]
[1742481387542,0.13809351,86219.0,86218.0,0.13590788]
[1742481388257,0.14309351,86219.0,86218.0,0.13590788]
[1742481388835,0.116018,86227.0,86218.0,0.13590788]
[1742481388836,0.20776572,86229.0,86226.0,0.0580085]
[1742481389035,0.20776572,86229.0,86228.0,0.4768156]
[1742481389543,0.1160116,86231.0,86230.0,0.1160129]
[1742481389736,0.1160143,86229.0,86228.0,0.4661]
[1742481390040,0.1160143,86229.0,86228.0,0.59066]
[1742481390245,0.1170143,86229.0,86228.0,0.59066]
[1742481390837,0.1160143,86229.0,86228.0,0.48536]
[1742481391043,0.2214143,86229.0,86228.0,0.48536]
[1742481392150,0.2224143,86229.0,86228.0,0.48536]
[1742481392449,0.2224143,86229.0,86228.0,0.6013756]
[1742481392743,0.2234143,86229.0,86228.0,0.6013756]
[1742481392946,0.2234143,86229.0,86228.0,0.48536]
[1742481393249,0.002,86229.0,86228.0,0.6013756]
[1742481393546,0.1180143,86229.0,86228.0,0.6013756]
[1742481394042,0.002,86229.0,86228.0,0.6013756]
[1742481394238,0.1180143,86229.0,86228.0,0.6013756]
[1742481394948,0.1180143,86229.0,86228.0,0.48536]
[1742481395759,0.3182143,86229.0,86228.0,0.48536]
[1742481395945,0.3172143,86229.0,86228.0,0.48536]
[1742481396248,0.3172143,86229.0,86218.0,0.020019]
[1742481396249,0.1160277,86219.0,86218.0,0.020019]
[1742481396448,0.1160277,86219.0,86218.0,0.2405491]
[1742481396643,0.2012,86229.0,86219.0,0.1160277]
[1742481396644,0.0983,86220.0,86219.0,0.1160277]
[1742481396952,0.2199154,86229.0,86228.0,0.1160156]
[1742481397138,0.2199154,86229.0,86228.0,0.12452]
[1742481397139,0.1180154,86229.0,86228.0,0.12452]
[1742481397343,0.2157154,86229.0,86228.0,0.12452]
[1742481397745,0.3176154,86229.0,86228.0,0.12452]
[1742481398150,0.3166154,86229.0,86228.0,0.12452]
[1742481398540,0.3166154,86229.0,86228.0,0.2405356]
[1742481398736,0.0987,86229.0,86228.0,0.2405356]
[1742481398937,4e-05,86230.0,86229.0,0.1160143]
[1742481399236,4e-05,86243.0,86236.0,0.1160049]
[1742481399555,4e-05,86243.0,86236.0,0.6013249]
[1742481399745,0.1160002,86240.0,86236.0,0.6013249]
[1742481399944,0.057999,86242.0,86236.0,0.7005249]
[1742481400144,4e-05,86238.0,86236.0,0.7005249]
[1742481400544,0.3608,86265.0,86236.0,0.58452]
[1742481400749,0.3608,86265.0,86260.0,0.1159726]
[1742481400750,0.2024,86261.0,86260.0,0.1159726]
[1742481400939,0.1038,86261.0,86260.0,0.3432926]
[1742481401649,0.1058,86267.0,86261.0,0.1739535]
[1742481401650,0.1159706,86262.0,86261.0,0.1739535]
[1742481401851,0.1038,86263.0,86262.0,0.1159699]
[1742481402053,0.2197695,86263.0,86262.0,0.5795699]
[1742481402444,0.1159695,86263.0,86262.0,0.59051664]
[1742481402942,0.1219695,86263.0,86262.0,0.59051664]
[1742481403144,0.1269695,86263.0,86262.0,0.59151664]
[1742481403347,0.1269695,86263.0,86262.0,0.69871664]
[1742481403541,0.011,86263.0,86262.0,0.69871664]
[1742481403844,0.08129923,86268.0,86267.0,0.1159632]
[1742481404155,4e-05,86276.0,86275.0,0.1159524]
[1742481404359,4e-05,86276.0,86275.0,0.6012324]
[1742481404660,4e-05,86276.0,86275.0,2.1012324]
[1742481404847,0.1159447,86281.0,86280.0,0.1159457]
[1742481405254,0.1159447,86281.0,86280.0,0.2404257]
[1742481405449,0.1159831,86282.0,86281.0,0.1159444]
[1742481405645,4e-05,86282.0,86281.0,0.1159444]
[1742481405849,0.1,86300.0,86280.0,0.12448]
[1742481406154,0.0579654,86292.0,86291.0,0.11593]
[1742481406452,4e-05,86294.0,86293.0,0.1159282]
[1742481406759,0.0999,86296.0,86295.0,0.1159256]
[1742481406948,0.215825,86296.0,86295.0,0.1159256]
[1742481407351,0.215825,86296.0,86295.0,1.6159256]
[1742481408455,0.215825,86296.0,86295.0,1.5]
[1742481408856,0.215825,86296.0,86295.0,0.12448]
[1742481409053,0.0999,86296.0,86295.0,0.2404056]
[1742481409645,0.2158242,86296.0,86295.0,0.2404056]
[1742481409851,0.2158242,86296.0,86295.0,0.12448]
[1742481410056,0.2178242,86296.0,86295.0,0.2404056]
[1742481410443,0.2178242,86296.0,86295.0,0.12448]
[1742481411953,4e-05,86303.0,86295.0,0.12448]
[1742481411954,0.00060001,86317.0,86316.0,0.1158974]
[1742481412150,0.3608,86338.0,86320.0,0.0579457]
[1742481412355,0.3608,86338.0,86316.0,1.385108]
[1742481412356,0.1158839,86326.0,86325.0,0.4766853]
[1742481412550,0.1158812,86328.0,86327.0,0.1158826]
[1742481412856,0.1158788,86330.0,86325.0,2.1011247]
[1742481413061,0.1158826,86327.0,86326.0,0.12444]
[1742481413455,0.1158839,86326.0,86325.0,1.8614]
[1742481413655,0.1158839,86326.0,86325.0,1.98524]
[1742481414160,0.0579412,86328.0,86325.0,1.98524]
[1742481414362,0.4187343,86338.0,86325.0,1.98524]
[1742481414363,0.001,86327.0,86326.0,0.1158839]
[1742481414855,0.001,86327.0,86325.0,2.1017249]
[1742481415060,0.001,86326.0,86325.0,2.1011249]
[1742481416360,0.001,86326.0,86325.0,1.9766849]
[1742481416551,0.001,86326.0,86325.0,2.1010849]
[1742481416948,4e-05,86329.0,86328.0,0.1158812]
[1742481417262,4e-05,86329.0,86328.0,0.4766812]
[1742481417463,4e-05,86329.0,86328.0,0.3608]
[1742481417655,4e-05,86329.0,86328.0,0.48799874]
[1742481418755,0.4083,86351.0,86333.0,0.057937]
[1742481418756,0.0579299,86344.0,86333.0,0.057937]
[1742481418961,0.1737897,86344.0,86343.0,0.3608]
[1742481419162,0.1737897,86344.0,86343.0,0.4852]
[1742481420355,0.1004,86346.0,86345.0,0.1158584]
[1742481421263,0.1004,86346.0,86345.0,1.7176584]
[1742481421468,4e-05,86347.0,86346.0,0.1158571]
[1742481421663,0.1158957,86347.0,86346.0,0.1079]
[1742481421867,0.1158557,86347.0,86346.0,0.1079]
[1742481422062,0.1158584,86345.0,86344.0,0.84152]
[1742481422272,0.1158584,86345.0,86344.0,0.96588]
[1742481422761,0.1158584,86345.0,86344.0,2.46588]
[1742481422962,0.1158584,86345.0,86344.0,0.96588]
[1742481423367,0.0579315,86342.0,86338.0,0.00017375]
[1742481423569,0.1158665,86339.0,86338.0,0.00017375]
[1742481423963,0.1377665,86339.0,86338.0,0.00017375]
[1742481424162,0.1158665,86339.0,86338.0,0.00017375]
[1742481424471,0.4313665,86339.0,86338.0,0.00017375]
[1742481424668,0.1158772,86331.0,86330.0,1.5]
[1742481424970,0.1158747,86333.0,86331.0,0.0579384]
[1742481425274,0.1081,86332.0,86331.0,0.2210772]
[1742481425574,0.1081,86332.0,86331.0,0.3454372]
[1742481426061,4e-05,86335.0,86334.0,0.1158732]
[1742481426667,0.10827299,86340.0,86339.0,0.1158665]
[1742481426871,0.22413809,86340.0,86339.0,0.4766665]
[1742481427070,0.22413809,86340.0,86339.0,0.6010265]
[1742481427371,0.22413809,86340.0,86339.0,0.48516]
[1742481427779,0.1158718,86335.0,86334.0,0.12432]
[1742481428166,0.3298718,86335.0,86334.0,0.12432]
[1742481429868,0.1158772,86331.0,86330.0,0.3614]
[1742481430074,0.1158772,86331.0,86330.0,0.3608]
[1742481430272,0.3238772,86331.0,86330.0,0.3608]
[1742481430666,0.1158866,86324.0,86323.0,0.00017375]
[1742481430963,0.1158866,86324.0,86317.0,0.00872458]
[1742481430964,0.1159068,86309.0,86308.0,0.1056]
[1742481431174,0.2318165,86308.0,86307.0,0.3608]
[1742481431474,0.3238081,86308.0,86307.0,0.4767094]
[1742481431679,0.3238081,86308.0,86307.0,0.36929045]
[1742481432664,0.3238081,86308.0,86307.0,0.37129045]
[1742481433577,0.1159188,86300.0,86296.0,0.3608]
[1742481433765,0.1159188,86300.0,86287.0,0.3608]
[1742481433766,0.1159188,86300.0,86291.0,0.12436]
[1742481433967,0.1159188,86300.0,86294.0,0.3608]
[1742481434167,0.1149188,86300.0,86294.0,0.3608]
[1742481434472,0.14417577,86898.0,86294.0,0.3608]
[1742481434473,0.1159048,86311.0,86299.0,0.13332229]
[1742481434672,0.1159101,86309.0,86308.0,0.1159058]
[1742481434873,0.1159101,86309.0,86308.0,0.6010258]
[1742481434874,0.1738638,86309.0,86308.0,0.6010258]
[1742481435173,0.1022,86310.0,86309.0,0.1159068]
[1742481435476,0.1159027,86312.0,86311.0,0.1738546]
[1742481435673,0.1159054,86310.0,86309.0,0.1589532]
[1742481436074,0.1159054,86310.0,86309.0,0.101]
[1742481436675,0.1159054,86310.0,86309.0,0.2169068]
[1742481437472,0.10224,86311.0,86310.0,0.1159054]
[1742481437677,4e-05,86311.0,86310.0,0.2169054]
[1742481437869,4e-05,86311.0,86310.0,0.22578051]
[1742481438263,4e-05,86319.0,86313.0,0.05795]
[1742481438566,4e-05,86319.0,86318.0,0.4766947]
[1742481438770,0.1083,86330.0,86326.0,0.1158834]
[1742481438969,0.1158812,86328.0,86327.0,0.22386]
[1742481439170,0.1158812,86328.0,86327.0,0.3608]
[1742481439375,0.34164374,86328.0,86327.0,0.3608]
[1742481439674,0.34164374,86328.0,86319.0,0.0995]
[1742481439675,0.1158906,86321.0,86320.0,0.12432]
[1742481440469,0.3295906,86321.0,86320.0,1.62432]
[1742481441476,0.1158906,86321.0,86320.0,1.62432]
[1742481441677,0.002,86321.0,86320.0,1.846812]
[1742481441882,0.002,86321.0,86320.0,1.954712]
[1742481442379,0.003,86321.0,86320.0,2.060812]
[1742481442580,0.2258906,86321.0,86320.0,2.060812]
[1742481443280,0.2258906,86321.0,86320.0,0.1079]
[1742481443578,0.2258906,86321.0,86319.0,0.00017375]
[1742481443579,0.115892,86320.0,86319.0,0.00017375]
[1742481443877,0.223792,86320.0,86319.0,0.00017375]
[1742481444071,0.36229199,86320.0,86319.0,0.00017375]
[1742481444271,0.1159014,86313.0,86312.0,0.12432]
[1742481445179,0.3258014,86313.0,86312.0,0.22482]
[1742481445773,0.0579527,86311.0,86297.0,0.84148]
[1742481445971,0.1159121,86305.0,86296.0,0.1159232]
[1742481446278,0.1159121,86305.0,86298.0,0.12432]
[1742481446578,0.12726643,86305.0,86299.0,0.1005]
[1742481446780,0.22726643,86305.0,86299.0,0.1005]
[1742481446976,0.22726643,86305.0,86304.0,0.00217375]
[1742481447575,0.33196643,86305.0,86304.0,0.00217375]
[1742481447774,0.72456643,86305.0,86304.0,0.00217375]
[1742481447969,0.84888643,86305.0,86304.0,0.00217375]
[1742481448169,0.91708643,86305.0,86304.0,5e-08]
[1742481448372,0.92790333,86305.0,86304.0,5e-08]
[1742481448683,0.1037208,86311.0,86308.0,0.0579534]
[1742481448983,0.1037208,86311.0,86304.0,1.10596005]
[1742481448984,0.1159054,86310.0,86309.0,0.204]
[1742481449284,0.3263054,86310.0,86309.0,0.0994]
[1742481449478,0.2104,86310.0,86309.0,0.2153068]
[1742481449680,0.1088,86310.0,86309.0,0.2153068]
[1742481450173,0.1037608,86311.0,86310.0,0.1159054]
[1742481450373,0.1037608,86311.0,86310.0,0.3274054]
[1742481450683,0.00017375,86316.0,86315.0,0.1158987]
[1742481450986,0.00017375,86316.0,86315.0,0.6010187]
[1742481452695,0.00117375,86316.0,86315.0,0.6010187]
[1742481453579,0.00117375,86316.0,86315.0,0.8710187]
[1742481453981,5e-08,86319.0,86318.0,0.1158947]
[1742481454180,5e-08,86319.0,86318.0,0.7466947]
[1742481454384,5e-08,86319.0,86318.0,0.8966947]
[1742481455287,0.11589335,86319.0,86318.0,1.8608]
[1742481455475,0.11589335,86319.0,86318.0,0.3608]
[1742481455799,0.11889335,86319.0,86318.0,0.3608]
[1742481456184,0.32119335,86319.0,86318.0,0.3608]
[1742481459893,0.1159041,86311.0,86310.0,0.00017375]
[1742481460480,0.1159108,86306.0,86305.0,0.27182108]
[1742481460679,0.1159175,86301.0,86300.0,0.33910182]
[1742481460884,0.0579547,86307.0,86286.0,0.3608]
[1742481460885,0.1159363,86287.0,86286.0,0.3608]
[1742481461286,0.1487363,86287.0,86286.0,0.3608]
[1742481461476,0.1487363,86287.0,86282.0,0.3608]
[1742481461477,0.1159417,86283.0,86282.0,0.3608]
[1742481461992,0.1159524,86275.0,86274.0,0.00017375]
[1742481462292,0.12432,86284.0,86274.0,0.00017375]
[1742481462293,0.3073,86282.0,86274.0,0.00017375]
[1742481462489,0.0941,86276.0,86275.0,0.5347286]
[1742481462990,0.53262,86292.0,86275.0,0.3608]
[1742481463184,0.1159403,86284.0,86283.0,0.3608]
[1742481463381,0.1378403,86284.0,86283.0,0.3608]
[1742481463579,0.1159484,86278.0,86277.0,0.12432]
[1742481463791,0.1159524,86275.0,86274.0,0.00017375]
[1742481464194,0.1149524,86275.0,86274.0,0.11612755]
[1742481464594,0.1149524,86275.0,86274.0,0.00017375]
[1742481465389,0.2149524,86275.0,86274.0,0.00017375]
[1742481465597,0.1149524,86275.0,86274.0,0.00017375]
[1742481465989,0.23665814,86275.0,86274.0,0.00017375]
[1742481466693,0.23665814,86275.0,86274.0,0.00117375]
[1742481467894,0.25855814,86275.0,86274.0,0.00117375]
[1742481468195,0.1159753,86258.0,86257.0,0.48516]
[1742481468396,0.1159753,86258.0,86257.0,0.6011366]
[1742481468591,0.1159753,86258.0,86257.0,0.48516]
[1742481469093,0.115971,86264.0,86263.0,0.1159645]
[1742481469288,0.1159699,86262.0,86261.0,0.0579855]
[1742481469488,0.1739601,86261.0,86260.0,0.1159721]
[1742481470691,0.0579862,86261.0,86260.0,0.1159721]
[1742481471191,0.0579862,86261.0,86260.0,0.1209721]
[1742481471891,0.0579862,86261.0,86260.0,0.1239721]
[1742481472996,0.1160077,86264.0,86263.0,0.1159686]
[1742481473195,4e-05,86264.0,86263.0,0.1159686]
[1742481473398,0.1160072,86264.0,86263.0,0.1159686]
[1742481473601,0.1160072,86264.0,86263.0,0.2192686]
[1742481473995,4e-05,86264.0,86263.0,1.7192686]
[1742481474403,0.2319131,86274.0,86273.0,0.1739285]
[1742481474601,0.2319131,86274.0,86273.0,0.48516]
[1742481475596,0.2319131,86274.0,86273.0,0.48616]
[1742481477003,0.2319131,86274.0,86273.0,0.6021151]
[1742481477407,0.2319131,86274.0,86273.0,0.8221151]
[1742481478199,0.2319131,86274.0,86273.0,0.59516]
[1742481480509,0.2319131,86274.0,86273.0,0.7111151]
[1742481480715,0.2319131,86274.0,86273.0,0.59516]
[1742481481014,0.2319131,86274.0,86273.0,0.23436]
[1742481481201,0.2538131,86274.0,86273.0,0.3618]
[1742481481406,0.26513156,86274.0,86273.0,0.001]
[1742481482204,0.24323156,86274.0,86273.0,0.001]
[1742481484114,0.107,86276.0,86273.0,0.1169551]
[1742481484316,0.1624749,86277.0,86276.0,0.1159511]
[1742481484703,0.1624749,86277.0,86276.0,0.33482088]
[1742481484909,0.0579749,86277.0,86276.0,1.83482088]
[1742481485119,4e-05,86278.0,86277.0,0.1159497]
[1742481485308,0.1159423,86283.0,86281.0,0.1159444]
[1742481485508,0.1159414,86284.0,86281.0,0.7967444]
[1742481485720,0.11611685,86282.0,86281.0,0.7967444]
[1742481486228,0.00017385,86282.0,86281.0,0.7967444]
[1742481486430,0.13843002,86286.0,86285.0,0.115939]
[1742481486634,0.17142733,86291.0,86290.0,0.1159323]
[1742481486925,0.17142733,86291.0,86290.0,0.4767323]
[1742481487128,0.28735823,86291.0,86290.0,0.4767323]
[1742481487521,0.1159309,86291.0,86290.0,1.8608]
[1742481487722,0.1159309,86291.0,86290.0,1.98512]
[1742481487923,0.1159309,86291.0,86290.0,0.48512]
[1742481488324,0.3292309,86291.0,86290.0,0.48512]
[1742481488933,4e-05,86296.0,86290.0,0.48512]
[1742481489128,0.1159309,86292.0,86291.0,0.1738895]
[1742481489328,0.10294,86296.0,86291.0,0.1738895]
[1742481489329,0.10294,86296.0,86292.0,0.0579648]
[1742481489529,4e-05,86296.0,86295.0,0.1159256]
[1742481489733,0.1159233,86297.0,86296.0,0.1159242]
[1742481489930,0.00017385,86299.0,86298.0,0.1159215]
[1742481490131,0.00017385,86299.0,86298.0,0.6010415]
[1742481490438,0.11609405,86299.0,86298.0,0.6010415]
[1742481491237,0.00017385,86299.0,86298.0,0.61261134]
[1742481491828,0.11609405,86299.0,86298.0,0.61261134]
[1742481492031,0.11609405,86299.0,86298.0,0.61361134]
[1742481492727,0.00017385,86299.0,86298.0,0.61361134]
[1742481492932,0.00017385,86299.0,86298.0,0.62221983]
[1742481493326,0.00017385,86299.0,86298.0,2.34241983]
[1742481493534,0.1158996,86315.0,86313.0,0.1159014]
[1742481493832,0.28732733,86314.0,86313.0,0.6010214]
[1742481494239,0.28732733,86314.0,86313.0,0.61217414]
[1742481494436,0.17142733,86314.0,86313.0,0.82227414]
[1742481494833,0.17442733,86314.0,86313.0,0.82227414]
[1742481495536,0.17142733,86314.0,86313.0,2.32227414]
[1742481495736,0.17242733,86314.0,86313.0,2.32227414]
[1742481496335,0.17542733,86314.0,86313.0,2.32227414]
[1742481497331,0.00017303,86322.0,86321.0,0.1158906]
[1742481497533,0.21736233,86322.0,86321.0,0.6009706]
[1742481498337,0.10147303,86322.0,86321.0,0.6009706]
[1742481498537,0.00017303,86322.0,86321.0,0.7026706]
[1742481498739,0.1073,86334.0,86333.0,0.1158745]
[1742481499043,0.1073,86334.0,86333.0,0.6009545]
[1742481499546,0.3244732,86334.0,86333.0,0.8096545]
[1742481499938,0.3294732,86334.0,86333.0,0.8096545]
[1742481500436,0.3294732,86334.0,86333.0,0.3608]
[1742481500642,0.1158839,86326.0,86325.0,0.00017374]
[1742481501541,0.1158839,86329.0,86328.0,0.1738197]
[1742481501733,0.1158839,86329.0,86328.0,0.6588997]
[1742481502447,0.1037,86329.0,86328.0,0.6588997]
[1742481502837,0.2195799,86329.0,86328.0,0.6588997]
[1742481503244,0.2245786,86330.0,86329.0,0.1158799]
[1742481503547,4e-05,86333.0,86329.0,0.2075]
[1742481503739,0.4662229,86355.0,86344.0,0.1158598]
[1742481503740,0.1067,86345.0,86344.0,0.1158598]
[1742481503943,4e-05,86351.0,86350.0,0.1158517]
[1742481504242,4e-05,86351.0,86350.0,0.4766517]
[1742481504445,4e-05,86351.0,86350.0,1.9766517]
[1742481505547,4e-05,86351.0,86350.0,1.98818179]
[1742481505935,0.1067,86357.0,86354.0,0.0579225]
[1742481506140,0.222543,86357.0,86356.0,0.1158437]
[1742481506344,0.1067,86357.0,86356.0,0.1158437]
[1742481506546,0.2225423,86357.0,86356.0,0.3279437]
[1742481507234,0.2225423,86357.0,86356.0,0.1062]
[1742481507843,0.115845,86355.0,86354.0,0.00854989]
[1742481508136,0.115845,86355.0,86352.0,0.3608]
[1742481508137,0.1158544,86348.0,86346.0,0.12424]
[1742481508647,0.4766544,86348.0,86347.0,0.00868319]
[1742481508847,0.1158544,86348.0,86347.0,0.00868319]
[1742481509043,0.6829544,86348.0,86347.0,0.00017374]
[1742481509240,0.3221544,86348.0,86347.0,0.00017374]
[1742481510348,0.3251544,86348.0,86347.0,0.00017374]
[1742481510542,0.3281544,86348.0,86347.0,0.11602944]
[1742481510937,0.3281544,86348.0,86347.0,0.00017374]
[1742481511143,0.3281544,86348.0,86347.0,0.11602944]
[1742481511447,0.3281544,86348.0,86347.0,0.00017374]
[1742481511648,0.3281544,86348.0,86347.0,0.11602944]
[1742481511856,0.2123,86348.0,86347.0,0.21682944]
[1742481512041,0.3281544,86348.0,86347.0,0.21682944]
[1742481512452,0.3281544,86348.0,86347.0,0.31772944]
[1742481512644,0.3281544,86348.0,86347.0,0.67852944]
[1742481512954,0.1126,86348.0,86347.0,0.67852944]
[1742481513146,0.003,86348.0,86347.0,0.67852944]
[1742481513346,0.004,86348.0,86347.0,0.67852944]
[1742481513748,0.004,86348.0,86347.0,2.17852944]
[1742481514145,0.001,86348.0,86347.0,2.17852944]
[1742481514359,4e-05,86353.0,86352.0,0.115849]
[1742481514545,4e-05,86353.0,86352.0,0.600849]
[1742481515654,0.00204,86353.0,86352.0,0.600849]
[1742481515846,0.002,86353.0,86352.0,0.600849]
[1742481516552,0.004,86353.0,86352.0,0.600849]
[1742481516748,0.004,86353.0,86352.0,2.100849]
[1742481517354,0.004,86353.0,86352.0,2.178449]
[1742481517547,0.004,86353.0,86352.0,2.302609]
[1742481518054,0.004,86353.0,86352.0,2.178449]
[1742481518255,0.004,86353.0,86352.0,2.302609]
[1742481519053,0.004,86353.0,86352.0,0.678449]
[1742481519258,0.004,86353.0,86352.0,0.802609]
[1742481519565,0.004,86353.0,86352.0,2.302609]
[1742481522160,4e-05,86357.0,86356.0,0.1158437]
[1742481522552,0.2004,86363.0,86362.0,0.1158356]
[1742481522757,0.0994,86363.0,86362.0,0.6007956]
[1742481522958,0.0994,86363.0,86362.0,0.8033956]
[1742481523655,0.05884626,86363.0,86362.0,0.8033956]
[1742481523961,0.0579153,86366.0,86362.0,0.8033956]
[1742481523962,0.1158343,86365.0,86364.0,0.0579164]
[1742481524553,0.2233343,86365.0,86364.0,0.12416]
[1742481524759,0.1158343,86363.0,86362.0,0.3608]
[1742481524963,0.1158343,86363.0,86362.0,0.6007956]
[1742481525158,0.2233343,86363.0,86362.0,0.6007956]
[1742481525960,0.2233343,86363.0,86362.0,0.61183402]
[1742481526762,0.3242343,86363.0,86362.0,0.61183402]
[1742481527269,0.3302343,86363.0,86362.0,0.61183402]
[1742481532071,0.2144,86363.0,86362.0,0.61183402]
[1742481532267,0.006,86363.0,86362.0,0.61183402]
[1742481532475,0.1158571,86376.0,86375.0,0.1158182]
[1742481532667,0.1158571,86376.0,86375.0,0.4766182]
[1742481532873,0.2185171,86376.0,86375.0,1.9766182]
[1742481533266,0.1027,86376.0,86375.0,1.9766182]
[1742481533569,0.2185168,86376.0,86375.0,0.4766182]
[1742481533964,0.2215168,86376.0,86375.0,1.9766182]
[1742481534770,0.2215168,86376.0,86375.0,0.4766182]
[1742481536379,0.2215168,86376.0,86375.0,0.3608]
[1742481537076,0.1158249,86370.0,86369.0,0.1158254]
[1742481537262,0.1158249,86370.0,86369.0,0.4766254]
[1742481537470,0.3345249,86370.0,86369.0,0.4766254]
[1742481538872,0.3345249,86370.0,86369.0,0.48492]
[1742481539273,0.3345249,86370.0,86369.0,0.3608]
[1742481540476,0.3345249,86370.0,86369.0,0.4766262]
[1742481540661,0.3345249,86370.0,86369.0,0.3608]
[1742481542369,0.3564249,86370.0,86369.0,0.3608]
[1742481542577,0.3345249,86370.0,86369.0,0.3608]
[1742481542776,0.1158276,86368.0,86367.0,0.00017374]
[1742481543074,0.1158531,86349.0,86348.0,0.32025403]
[1742481543375,0.1158531,86349.0,86348.0,0.8035921]
[1742481543576,0.2214531,86349.0,86348.0,0.8035921]
[1742481544279,0.3275531,86349.0,86348.0,0.9051921]
[1742481544677,0.2117,86349.0,86348.0,0.9051921]
[1742481544863,0.1056,86349.0,86348.0,0.9051921]
[1742481545269,0.2214531,86349.0,86348.0,0.9051921]
[1742481545673,0.2214531,86349.0,86348.0,0.9061921]
[1742481545881,0.3275531,86349.0,86348.0,0.9061921]
[1742481546773,4e-05,86350.0,86349.0,0.1158531]
[1742481546973,0.1158917,86350.0,86349.0,0.4445331]
[1742481547169,0.25467577,86350.0,86349.0,0.4445331]
[1742481547773,0.36693577,86350.0,86349.0,0.2046]
[1742481548071,0.36693577,86350.0,86349.0,0.3204531]
[1742481548475,0.46903577,86350.0,86349.0,0.3204531]
[1742481548780,0.13878407,86350.0,86349.0,0.3204531]
[1742481549166,0.11335653,86355.0,86354.0,0.1158464]
[1742481549371,0.00017338,86357.0,86356.0,0.1158437]
[1742481549678,0.20579112,86360.0,86359.0,0.1158396]
[1742481549878,0.109,86373.0,86372.0,0.1158222]
[1742481550072,4e-05,86380.0,86372.0,0.1158222]
[1742481550073,0.1158915,86380.0,86379.0,0.1158128]
[1742481550273,0.1158915,86380.0,86379.0,0.8406928]
[1742481550483,8e-05,86380.0,86379.0,2.2042928]
[1742481550785,8e-05,86380.0,86379.0,0.7042928]
[1742481551472,0.2248915,86380.0,86379.0,0.7042928]
[1742481551671,0.10908,86380.0,86379.0,0.7042928]
[1742481552071,8e-05,86380.0,86379.0,0.9842928]
[1742481552271,8e-05,86380.0,86379.0,0.99592645]
[1742481552478,8e-05,86380.0,86379.0,2.60642645]
[1742481552678,0.0578957,86395.0,86379.0,2.60642645]
[1742481552679,0.1736973,86394.0,86393.0,0.1157941]
[1742481552871,0.2315946,86394.0,86393.0,0.4765941]
[1742481553281,0.2315946,86394.0,86393.0,0.5807941]
[1742481553979,0.2315946,86394.0,86393.0,0.3608]